bitfinex/quotes_ETHUSD_20250422
["timestamp","ask_amount","ask_price","bid_price","bid_amount"]
[1745345490769,5.700758,1698.7,1698.5,11.86381277]
[1745345491185,5.700758,1698.7,1698.5,5.97632007]
[1745345491697,5.700758,1698.7,1698.4,3.0]
[1745345492289,5.700758,1698.7,1698.4,10.37418902]
[1745345492472,5.700758,1698.7,1698.4,4.48643975]
[1745345492674,5.700758,1698.7,1698.4,3.0]
[1745345494497,5.700758,1698.7,1698.4,8.8877331]
[1745345494908,5.700758,1698.7,1698.4,3.0]
[1745345495397,5.700758,1698.7,1698.4,8.88780061]
[1745345495859,5.700758,1698.7,1698.4,3.0]
[1745345496060,5.700758,1698.7,1698.4,8.887888]
[1745345496388,5.700758,1698.7,1698.4,3.0]
[1745345496999,5.700758,1698.7,1698.4,8.88779629]
[1745345497699,5.700758,1698.7,1698.4,10.96300772]
[1745345498302,5.700758,1698.7,1698.5,6.03518772]
[1745345498488,5.700758,1698.7,1698.4,8.88765372]
[1745345498684,5.700758,1698.7,1698.4,8.88772732]
[1745345498885,12.33817035,1698.9,1698.4,3.0]
[1745345499199,5.88663265,1698.8,1698.4,3.0]
[1745345499499,14.16059042,1698.9,1698.4,3.0]
[1745345499705,20.04701125,1698.9,1698.4,3.0]
[1745345499890,5.88653396,1698.8,1698.4,3.0]
[1745345500888,5.88653396,1698.8,1698.3,11.86433353]
[1745345500889,0.751,1698.4,1697.7,7.29183134]
[1745345501079,5.88946419,1698.0,1697.5,6.79032007]
[1745345501404,5.89021273,1697.8,1697.4,0.399242]
[1745345501607,5.700758,1698.2,1697.8,3.0]
[1745345501808,5.700758,1698.4,1698.0,9.70312649]
[1745345502014,5.700758,1698.4,1698.1,5.8887899]
[1745345502172,5.700758,1698.7,1698.3,5.88795896]
[1745345502613,5.700758,1698.7,1698.3,11.77600845]
[1745345502911,5.700758,1698.7,1698.4,0.814]
[1745345504014,5.700758,1698.7,1698.5,5.88745489]
[1745345504178,5.700758,1698.7,1698.5,5.94632329]
[1745345504516,5.700758,1698.7,1698.6,8.88720122]
[1745345504674,6.63668075,1699.1,1698.7,5.8868442]
[1745345504675,0.751,1699.1,1698.7,5.8868442]
[1745345504875,0.751,1699.1,1698.6,8.88696714]
[1745345505194,0.751,1699.1,1698.6,16.8489981]
[1745345505593,0.751,1699.1,1698.6,10.96203082]
[1745345505999,0.751,1699.1,1698.7,5.88654484]
[1745345506199,5.700758,1699.2,1698.8,5.88650298]
[1745345506418,5.700758,1699.2,1698.8,11.77285481]
[1745345506712,5.88452848,1699.4,1698.9,13.03952086]
[1745345506713,5.595,1699.4,1698.9,13.03952086]
[1745345506889,12.33598971,1699.5,1698.9,13.03952086]
[1745345507091,5.884631,1699.4,1698.9,1.17728548]
[1745345507411,5.884631,1699.4,1698.8,14.77262912]
[1745345507591,5.884631,1699.4,1698.8,8.88627326]
[1745345508085,6.451758,1699.5,1698.8,3.0]
[1745345508275,5.88496943,1699.3,1698.8,3.0]
[1745345509392,5.88459757,1699.4,1698.8,8.88626858]
[1745345509614,5.88459757,1699.4,1698.9,0.88862686]
[1745345510110,12.33605341,1699.5,1698.8,3.0]
[1745345510421,5.88468433,1699.4,1698.8,8.88638842]
[1745345510616,6.451758,1699.5,1699.0,6.69980605]
[1745345510827,0.751,1699.5,1699.0,6.69964847]
[1745345511035,6.63522586,1699.5,1699.0,3.814]
[1745345511205,0.751,1699.5,1699.0,11.2674199]
[1745345511390,0.751,1699.5,1699.0,11.26724609]
[1745345512303,6.63515561,1699.5,1699.0,5.38163072]
[1745345512503,6.63515561,1699.5,1699.0,11.26742385]
[1745345513027,0.751,1699.5,1699.0,11.26742385]
[1745345513727,6.63520184,1699.5,1699.0,11.26742385]
[1745345513923,5.88443971,1699.4,1699.0,5.38163072]
[1745345514129,5.88443971,1699.4,1699.0,3.814]
[1745345514491,6.63520184,1699.5,1699.0,3.814]
[1745345514927,5.88471485,1699.4,1699.0,3.814]
[1745345515230,5.88467772,1699.4,1699.0,3.814]
[1745345515992,0.751,1699.5,1699.0,9.69959355]
[1745345516328,6.63515185,1699.5,1699.0,11.8557814]
[1745345516516,12.33590985,1699.5,1699.0,11.8557814]
[1745345517341,5.88460653,1699.4,1699.0,5.97018785]
[1745345517506,12.33590985,1699.5,1699.0,5.97018785]
[1745345517695,5.88446309,1699.4,1699.0,5.97018785]
[1745345517892,5.88446309,1699.4,1699.0,3.814]
[1745345518094,5.88489794,1699.3,1698.9,3.7597]
[1745345518693,5.884634,1699.4,1698.9,3.7597]
[1745345519523,11.7693666,1699.4,1698.9,3.7597]
[1745345519719,11.76936847,1699.4,1698.9,3.7597]
[1745345519923,5.88495481,1699.3,1698.9,3.7597]
[1745345520417,1.82211265,1699.4,1699.0,3.0]
[1745345520620,6.451758,1699.5,1699.0,3.0]
[1745345520621,18.22031813,1699.5,1699.0,3.0]
[1745345520931,18.22031993,1699.5,1699.0,3.0]
[1745345521638,12.33595136,1699.5,1699.0,3.0]
[1745345521929,5.700758,1699.5,1699.2,0.7597]
[1745345522525,18.6277315,1699.5,1699.2,0.7597]
[1745345522691,5.88467344,1699.4,1699.0,3.7597]
[1745345522890,5.88478749,1699.3,1699.0,3.7597]
[1745345523121,12.74344641,1699.5,1699.0,3.7597]
[1745345523332,12.74344641,1699.5,1699.0,9.64541453]
[1745345523728,12.74344641,1699.5,1699.0,11.79619941]
[1745345524137,6.8592296,1699.5,1699.0,11.79619941]
[1745345524338,6.8592296,1699.5,1699.0,11.7960672]
[1745345524635,5.700758,1699.5,1699.1,5.88543675]
[1745345525000,5.700758,1699.5,1699.1,17.74706996]
[1745345525204,5.700758,1699.5,1699.2,6.64478595]
[1745345525430,5.700758,1699.5,1699.3,0.05883973]
[1745345525837,5.700758,1699.5,1699.2,3.7597]
[1745345526333,5.700758,1699.5,1699.2,9.64465149]
[1745345526537,5.595,1699.7,1699.3,5.88467216]
[1745345526739,5.595,1699.7,1699.2,11.79520521]
[1745345527037,5.88322914,1699.8,1699.2,17.68013852]
[1745345527225,5.88322914,1699.8,1699.3,5.88472331]
[1745345527421,7.71064384,1699.8,1699.3,5.88472331]
[1745345527623,5.700758,1700.0,1699.5,11.86017587]
[1745345527825,5.700758,1700.0,1699.7,0.7597]
[1745345528831,5.700758,1700.0,1699.7,6.64302643]
[1745345529811,5.700758,1700.0,1699.7,12.61919689]
[1745345530019,5.700758,1700.0,1699.8,5.8830234]
[1745345530419,5.700758,1700.0,1699.7,6.73602007]
[1745345530739,5.700758,1700.0,1699.7,12.6193161]
[1745345531040,5.700758,1700.0,1699.7,12.61940127]
[1745345531249,5.700758,1700.0,1699.7,6.6430812]
[1745345531451,5.700758,1700.0,1699.5,5.97632007]
[1745345531452,5.88304506,1699.8,1699.3,0.10760733]
[1745345531616,5.88385891,1699.6,1699.1,0.0588503]
[1745345531948,5.88428761,1699.5,1699.0,3.0]
[1745345532262,5.88428761,1699.5,1699.0,3.96599046]
[1745345532611,5.88428761,1699.5,1699.0,0.96599046]
[1745345532853,5.88446004,1699.4,1699.0,0.96599046]
[1745345533023,5.88483035,1699.3,1698.9,0.7739]
[1745345533220,6.67123035,1699.3,1698.9,0.7739]
[1745345533432,6.67123035,1699.3,1698.9,3.7739]
[1745345533634,0.7864,1699.3,1698.9,9.6600358]
[1745345533833,6.67063601,1699.5,1699.0,0.96600358]
[1745345534009,5.88388854,1699.6,1699.1,5.88544207]
[1745345534209,5.88388854,1699.6,1699.1,0.05884462]
[1745345534429,5.88388854,1699.6,1699.0,8.88566222]
[1745345534654,6.66992324,1699.7,1699.2,3.0]
[1745345534953,5.88321631,1699.8,1699.3,6.65856816]
[1745345535173,17.93599645,1699.9,1699.4,3.0]
[1745345535332,6.6685306,1700.1,1699.6,5.88363579]
[1745345535526,5.88250094,1700.0,1699.7,0.7739]
[1745345537855,5.88295719,1699.9,1699.4,3.7739]
[1745345538048,5.88294888,1699.9,1699.4,3.7739]
[1745345538346,6.47124377,1699.9,1699.4,9.6582083]
[1745345538527,5.88294888,1699.9,1699.4,9.6582083]
[1745345538727,5.8830984,1699.8,1699.4,3.7739]
[1745345539934,12.37055655,1699.7,1699.2,6.3399]
[1745345540175,6.487158,1699.7,1699.2,3.7739]
[1745345540469,5.88385601,1699.6,1699.2,3.7739]
[1745345541481,6.487158,1699.7,1699.3,5.88471695]
[1745345541778,5.700758,1699.7,1699.3,5.88471695]
[1745345541978,5.700758,1699.7,1699.2,11.22237009]
[1745345542275,11.58419328,1699.7,1699.2,11.22237009]
[1745345542572,5.88390919,1699.6,1699.2,3.7739]
[1745345543969,5.700758,1699.7,1699.3,0.05884444]
[1745345544272,5.700758,1699.7,1699.3,5.8846591]
[1745345545279,5.700758,1699.7,1699.3,5.88464154]
[1745345545479,5.700758,1699.7,1699.3,5.88462115]
[1745345545886,5.700758,1699.7,1699.3,5.88458917]
[1745345546079,5.700758,1699.7,1699.3,6.85042545]
[1745345546284,5.700758,1699.7,1699.3,12.73495401]
[1745345546448,5.700758,1699.7,1699.3,6.85039694]
[1745345546781,5.700758,1699.7,1699.3,12.73495681]
[1745345547082,5.700758,1699.7,1699.5,5.883975]
[1745345547758,5.700758,1699.7,1699.5,5.8838542]
[1745345547949,5.700758,1699.7,1699.6,9.65763734]
[1745345548154,5.700758,1700.0,1699.6,9.65763734]
[1745345548476,5.700758,1700.0,1699.7,5.88326162]
[1745345548678,5.700758,1700.0,1699.6,9.65752741]
[1745345549057,11.58333551,1700.0,1699.6,3.0]
[1745345549381,13.40852616,1700.0,1699.6,3.0]
[1745345549584,13.40852616,1700.0,1699.5,6.47222831]
[1745345549783,7.52594865,1700.0,1699.5,6.47222831]
[1745345549962,13.40844137,1700.0,1699.5,6.47222831]
[1745345550594,13.40844137,1700.0,1699.5,5.88406762]
[1745345550785,5.88287727,1699.9,1699.5,3.0]
[1745345551186,13.40844137,1700.0,1699.5,8.88397707]
[1745345551898,7.52594865,1700.0,1699.6,5.88372158]
[1745345552065,13.40831955,1700.0,1699.5,8.88388589]
[1745345552264,13.40831955,1700.0,1699.5,8.88406195]
[1745345553104,1.34083196,1699.9,1699.5,3.0]
[1745345553610,7.22358126,1699.9,1699.5,3.0]
[1745345554165,6.66948576,1699.8,1699.3,5.88465904]
[1745345554362,6.66948576,1699.8,1699.2,0.7739]
[1745345554363,5.88362824,1699.7,1699.2,0.7739]
[1745345554577,6.28912082,1699.6,1699.2,6.65899832]
[1745345555000,12.17308271,1699.6,1699.2,0.7739]
[1745345555181,12.17308271,1699.6,1699.1,8.88535703]
[1745345555659,0.816,1699.5,1699.1,8.88535703]
[1745345555859,0.816,1699.5,1699.0,12.27011548]
[1745345556073,13.69998124,1699.5,1699.0,6.70511548]
[1745345556396,19.58431572,1699.5,1698.9,17.74820784]
[1745345556575,7.81566627,1699.5,1699.0,8.88559817]
[1745345556962,5.88446126,1699.4,1699.0,3.0]
[1745345557163,13.70000856,1699.5,1699.0,8.88579159]
[1745345557363,7.25446536,1699.4,1699.0,3.0]
[1745345557823,7.25446536,1699.4,1698.9,11.86223855]
[1745345558726,6.70138655,1699.2,1698.7,11.86316608]
[1745345558931,6.516758,1699.2,1698.7,5.88684601]
[1745345559223,6.516758,1699.2,1698.8,5.88634447]
[1745345559430,6.516758,1699.2,1698.8,7.66127592]
[1745345559729,5.88549371,1699.1,1698.6,5.8871997]
[1745345560034,0.816,1698.9,1698.4,14.16978908]
[1745345560332,0.816,1698.9,1698.4,14.16978589]
[1745345560506,6.516758,1698.9,1698.4,14.16978589]
[1745345560706,6.516758,1698.9,1698.5,5.88752758]
[1745345561007,5.88669457,1698.8,1698.3,5.88800378]
[1745345561207,5.700758,1698.7,1698.3,5.88800378]
[1745345561610,0.816,1698.9,1698.4,5.97632007]
[1745345561818,5.700758,1699.0,1698.6,8.97632007]
[1745345562021,5.700758,1699.0,1698.8,8.88636977]
[1745345562399,5.700758,1699.0,1698.8,3.0]
[1745345562898,5.700758,1699.0,1698.5,3.0]
[1745345563099,5.700758,1699.0,1698.6,5.88715604]
[1745345563316,5.700758,1699.0,1698.7,5.94559902]
[1745345563536,5.700758,1699.0,1698.6,5.88699615]
[1745345563712,5.700758,1699.0,1698.6,13.84907474]
[1745345563910,5.700758,1699.0,1698.6,7.96206363]
[1745345564118,5.700758,1699.0,1698.6,13.84904961]
[1745345564326,5.700758,1699.0,1698.7,5.88685378]
[1745345564550,5.700758,1699.0,1698.8,5.88635108]
[1745345565030,5.700758,1699.0,1698.7,5.88662289]
[1745345565209,5.700758,1699.0,1698.8,5.88629512]
[1745345565739,5.700758,1699.0,1698.7,18.62356418]
[1745345566133,5.700758,1699.0,1698.7,12.73687016]
[1745345566310,5.700758,1699.0,1698.8,5.88646748]
[1745345566640,5.700758,1699.0,1698.8,5.88632406]
[1745345566846,5.700758,1699.0,1698.8,7.15992403]
[1745345567046,5.700758,1699.0,1698.8,13.04621484]
[1745345567221,5.700758,1699.0,1698.8,7.15992403]
[1745345567420,5.700758,1699.0,1698.8,13.04620902]
[1745345567750,5.700758,1699.0,1698.8,7.15992403]
[1745345569753,5.700758,1699.0,1698.8,13.04623009]
[1745345569941,5.700758,1699.0,1698.9,5.88616163]
[1745345570320,5.700758,1699.0,1698.9,7.1907702]
[1745345570740,5.700758,1699.0,1698.9,7.9684702]
[1745345571072,4.953358,1699.3,1699.1,5.88524382]
[1745345571264,4.953358,1699.3,1699.2,5.88512241]
[1745345571419,0.7747,1699.4,1699.1,5.88524382]
[1745345571615,0.7747,1699.4,1699.1,0.58852438]
[1745345572122,0.7747,1699.4,1699.0,5.90208517]
[1745345572330,6.65932437,1699.4,1698.9,11.78808565]
[1745345572845,6.65934661,1699.4,1698.9,5.90208517]
[1745345573063,11.7699254,1699.3,1698.9,5.90208517]
[1745345573229,5.88489199,1699.3,1698.9,5.90208517]
[1745345573423,5.88489199,1699.3,1698.9,7.20828799]
[1745345573628,0.7747,1699.1,1698.8,1.27365832]
[1745345573961,5.728058,1699.1,1698.8,1.27365832]
[1745345574927,5.728058,1699.1,1698.7,5.90208517]
[1745345575124,11.61367949,1699.1,1698.7,5.90208517]
[1745345575860,5.728058,1699.1,1698.7,11.78887789]
[1745345576062,5.728058,1699.1,1698.7,5.90208517]
[1745345576553,5.728058,1699.1,1698.7,11.78883053]
[1745345576754,5.728058,1699.1,1698.7,7.9696645]
[1745345576929,11.61352889,1699.1,1698.7,7.9696645]
[1745345577128,5.728058,1699.1,1698.7,13.85641244]
[1745345577325,5.728058,1699.1,1698.9,5.90208517]
[1745345577632,4.953358,1699.1,1698.9,5.90208517]
[1745345577831,4.953358,1699.1,1698.9,7.08092126]
[1745345578561,4.953358,1699.1,1698.9,13.7705717]
[1745345578765,4.953358,1699.1,1699.0,5.88581518]
[1745345582337,4.953358,1699.1,1698.9,13.7705717]
[1745345582933,4.953358,1699.1,1699.0,8.88581518]
[1745345583129,4.953358,1699.1,1699.0,16.4633192]
[1745345583331,4.953358,1699.1,1699.0,10.56123403]
[1745345584062,4.953358,1699.4,1699.0,16.4633192]
[1745345584260,10.83786559,1699.4,1699.0,10.57750402]
[1745345584466,4.953358,1699.4,1699.0,10.57750402]
[1745345584630,4.953358,1699.4,1699.0,16.46329287]
[1745345587162,4.953358,1699.4,1699.0,16.46324275]
[1745345587663,4.953358,1699.4,1699.0,22.34883108]
[1745345587867,4.953358,1699.4,1699.1,8.12030981]
[1745345588168,4.953358,1699.4,1699.1,2.23488311]
[1745345588343,4.953358,1699.4,1699.0,16.46308629]
[1745345588538,4.953358,1699.4,1699.0,22.34868951]
[1745345588739,4.953358,1699.4,1699.0,22.34868541]
[1745345589066,4.953358,1699.4,1699.1,5.88530971]
[1745345589477,4.953358,1699.4,1699.0,8.88558227]
[1745345589681,6.118063,1699.4,1699.0,14.78766744]
[1745345589966,6.118063,1699.4,1699.0,11.78766744]
[1745345591274,6.118063,1699.4,1699.0,17.6732925]
[1745345591583,6.118063,1699.4,1699.0,11.78766744]
[1745345593785,6.118063,1699.4,1699.0,5.88558227]
[1745345593977,6.118063,1699.4,1699.0,5.90208517]
[1745345594169,0.7503,1699.2,1698.9,3.0]
[1745345594674,6.63542558,1699.2,1698.9,3.0]
[1745345594887,6.63542558,1699.2,1698.8,5.90208517]
[1745345595267,5.88567426,1699.1,1698.5,18.49938965]
[1745345595476,5.88583142,1699.0,1698.6,4.84993897]
[1745345595770,11.271658,1699.2,1698.7,11.78884493]
[1745345595771,17.15698312,1699.2,1698.7,11.78884493]
[1745345596956,11.271658,1699.2,1698.7,11.78871628]
[1745345597156,17.15685138,1699.2,1698.7,11.78871628]
[1745345597981,17.15685138,1699.2,1698.7,11.78870137]
[1745345598377,25.40758324,1699.2,1698.7,11.78870137]
[1745345598687,25.40758324,1699.2,1698.7,5.90208517]
[1745345598889,5.8856557,1699.1,1698.7,5.90208517]
[1745345599048,4.953358,1699.0,1698.5,5.90208517]
[1745345599252,0.7503,1698.8,1698.2,11.79052184]
[1745345599493,6.63695152,1698.8,1698.4,5.90208517]
[1745345599787,11.59030952,1698.8,1698.4,5.90208517]
[1745345600185,5.703658,1698.8,1698.4,5.90208517]
[1745345600350,5.703658,1699.0,1698.6,5.90208517]
[1745345600689,17.47557584,1699.0,1698.6,5.90208517]
[1745345600891,5.88620173,1698.9,1698.6,5.90208517]
[1745345601087,5.88620173,1698.9,1698.5,3.0]
[1745345601389,4.953358,1698.8,1698.2,0.5877]
[1745345601590,5.88688399,1698.7,1698.3,8.90208517]
[1745345603100,5.88688399,1698.7,1698.3,3.0]
[1745345603258,5.88688399,1698.7,1698.3,9.79092429]
[1745345603455,0.7503,1698.6,1698.1,5.90208517]
[1745345603696,5.88767773,1698.5,1698.1,5.90208517]
[1745345603897,0.7503,1698.6,1698.3,5.90208517]
[1745345604059,5.88704921,1698.7,1698.3,5.90208517]
[1745345604259,23.04608378,1698.8,1698.4,0.59020852]
[1745345604591,5.88689869,1698.7,1698.4,0.59020852]
[1745345604793,17.15932823,1698.8,1698.4,0.59020852]
[1745345605094,23.0461064,1698.8,1698.4,0.59020852]
[1745345605294,11.272658,1698.8,1698.5,5.90208517]
[1745345605477,11.272658,1698.8,1698.5,6.85131454]
[1745345606003,17.15933989,1698.8,1698.5,6.85131454]
[1745345606201,17.15933989,1698.8,1698.5,0.94922937]
[1745345606501,17.15933989,1698.8,1698.4,3.59020852]
[1745345606713,17.15920239,1698.8,1698.4,3.59020852]
[1745345609004,5.8869704,1698.7,1698.4,3.59020852]
[1745345609206,11.77410985,1698.7,1698.4,3.0]
[1745345609407,5.8869704,1698.7,1698.4,3.0]
[1745345609780,5.88736339,1698.6,1698.3,5.90208517]
[1745345610506,6.70597309,1698.5,1698.1,3.7738]
[1745345610807,6.70527793,1698.7,1698.3,5.90208517]
[1745345611599,12.59241095,1698.7,1698.3,5.90208517]
[1745345611803,5.88731511,1698.6,1698.3,5.90208517]
[1745345612875,5.88731511,1698.6,1698.2,0.37738]
[1745345613072,5.88836663,1698.3,1697.7,6.66402715]
[1745345613311,5.88836663,1698.3,1697.9,3.0]
[1745345613312,10.84172463,1698.3,1697.9,3.0]
[1745345613479,5.88873198,1698.2,1697.9,3.0]
[1745345613875,5.88873198,1698.2,1697.8,5.90208517]
[1745345613876,5.88955528,1698.0,1697.8,5.90208517]
[1745345614092,5.88955528,1698.0,1697.7,5.90208517]
[1745345614291,0.8183,1697.8,1697.4,0.399242]
[1745345614492,0.8183,1697.8,1697.6,5.90208517]
[1745345614725,4.953358,1697.9,1697.6,5.90208517]
[1745345614934,5.88825356,1698.3,1697.8,5.90208517]
[1745345614935,11.66038091,1698.2,1697.8,5.90208517]
[1745345615309,5.88895282,1698.1,1697.7,0.7738]
[1745345615632,5.88948366,1698.0,1697.5,6.67588517]
[1745345615831,5.88977424,1697.9,1697.5,6.67588517]
[1745345616200,0.8183,1697.8,1697.4,0.399242]
[1745345616408,11.66173679,1697.8,1697.4,0.399242]
[1745345616616,17.55201596,1697.8,1697.4,0.399242]
[1745345617015,5.89075233,1697.6,1697.4,0.399242]
[1745345617420,5.81065233,1697.6,1697.4,0.399242]
[1745345617741,6.7093162,1697.5,1697.4,0.399242]
[1745345617940,11.66217697,1697.7,1697.4,0.399242]
[1745345618330,5.8910162,1697.5,1697.4,0.399242]
[1745345618809,5.89069461,1697.6,1697.4,0.399242]
[1745345619004,4.953358,1697.7,1697.4,0.399242]
[1745345619212,4.953358,1697.7,1697.4,1.02937472]
[1745345619733,10.8436883,1697.7,1697.4,1.02937472]
[1745345620235,4.953358,1697.7,1697.4,1.02937472]
[1745345620402,11.66245982,1697.6,1697.4,0.399242]
[1745345620604,4.953358,1697.6,1697.4,0.399242]
[1745345621344,0.8214,1697.5,1697.4,0.399242]
[1745345621502,10.84413376,1697.6,1697.4,0.399242]
[1745345621503,4.953358,1697.6,1697.4,0.399242]
[1745345622207,4.953358,1697.8,1697.4,0.399242]
[1745345622434,4.953358,1697.8,1697.5,0.782]
[1745345622897,10.84346043,1697.8,1697.5,0.782]
[1745345623303,4.953358,1697.8,1697.5,0.782]
[1745345623720,4.953358,1697.8,1697.4,6.30132717]
[1745345623924,10.84346855,1697.8,1697.4,6.30132717]
[1745345624423,5.89039302,1697.7,1697.4,6.30132717]
[1745345624625,13.15601264,1697.8,1697.4,0.399242]
[1745345624837,13.15601264,1697.8,1697.4,3.399242]
[1745345625540,4.953358,1697.8,1697.4,15.19264047]
[1745345625705,4.953358,1697.8,1697.6,0.782]
[1745345626044,10.84355965,1697.8,1697.4,1.181242]
[1745345626413,5.89053869,1697.7,1697.4,1.181242]
[1745345626623,6.71193869,1697.7,1697.4,1.181242]
[1745345627243,4.953358,1698.0,1697.6,8.89054468]
[1745345627443,4.953358,1698.0,1697.8,3.782]
[1745345627629,4.953358,1698.1,1697.8,3.782]
[1745345627835,10.8424154,1698.1,1697.8,3.782]
[1745345628839,4.953358,1698.1,1697.8,3.782]
[1745345629337,10.84229883,1698.1,1697.8,3.782]
[1745345630010,10.84229883,1698.1,1697.8,3.0]
[1745345631522,0.8214,1698.0,1697.6,11.79273208]
[1745345632250,10.84252445,1698.1,1697.7,0.782]
[1745345632251,4.953358,1698.1,1697.7,0.782]
[1745345632452,4.953358,1698.1,1697.8,5.90208517]
[1745345633545,4.953358,1698.1,1697.9,3.0]
[1745345633846,4.953358,1698.1,1698.0,6.68408517]
[1745345634049,4.953358,1698.4,1698.1,8.88871903]
[1745345634250,5.571,1698.5,1698.3,5.90208517]
[1745345634422,4.953358,1698.6,1698.2,5.90208517]
[1745345634621,4.953358,1698.6,1698.2,11.79064291]
[1745345634862,4.953358,1698.6,1698.3,1.96106429]
[1745345636446,4.953358,1698.7,1698.5,3.0]
[1745345636619,10.83919883,1699.0,1698.6,6.66348517]
[1745345637555,5.88666162,1698.8,1698.5,3.0]
[1745345637752,5.88616163,1698.9,1698.5,3.0]
[1745345637931,1.08395196,1698.9,1698.5,3.0]
[1745345638126,10.83933313,1699.0,1698.5,3.0]
[1745345638343,5.88617252,1698.9,1698.5,3.0]
[1745345640662,5.88691842,1698.7,1698.2,0.7614]
[1745345640864,5.88691842,1698.7,1698.3,5.90208517]
[1745345641422,5.88621852,1698.9,1698.4,0.7614]
[1745345641653,5.88651618,1698.8,1698.4,0.7614]
[1745345642166,6.68195985,1698.7,1698.2,3.0]
[1745345642465,5.88674366,1698.8,1698.3,3.0]
[1745345642630,11.77356841,1698.8,1698.3,3.0]
[1745345642828,11.77352754,1698.8,1698.3,10.9561012]
[1745345643130,5.88689188,1698.7,1698.3,5.06788251]
[1745345645062,7.26086163,1698.9,1698.1,6.66348517]
[1745345645236,7.26086163,1698.9,1698.0,5.90208517]
[1745345645237,5.88811087,1698.4,1698.0,5.90208517]
[1745345645421,5.88733151,1698.6,1698.2,5.90208517]
[1745345645759,5.88733151,1698.6,1698.2,6.66028517]
[1745345646574,11.77478753,1698.6,1698.2,6.66028517]
[1745345646865,11.77478381,1698.6,1698.2,6.66028517]
[1745345647361,7.14727989,1698.6,1698.2,6.61028517]
[1745345647732,7.14727989,1698.6,1698.2,6.56028517]
[1745345648243,7.14727989,1698.6,1698.2,6.41028517]
[1745345648572,4.953358,1698.6,1698.2,6.41028517]
[1745345648755,10.84065468,1698.6,1698.2,6.41028517]
[1745345648951,4.953358,1698.6,1698.2,6.41028517]
[1745345649156,4.953358,1698.6,1698.2,12.29884927]
[1745345649775,10.84066732,1698.6,1698.2,6.41028517]
[1745345650584,0.8247,1698.4,1697.9,3.0]
[1745345650757,5.88827886,1698.3,1698.0,0.7582]
[1745345651075,10.84163686,1698.3,1697.9,5.90208517]
[1745345651373,10.84163686,1698.3,1697.8,6.67268165]
[1745345651374,5.88867708,1698.2,1697.8,3.7828]
[1745345651579,5.88867708,1698.2,1697.9,3.0]
[1745345651740,10.84163686,1698.3,1697.9,3.0]
[1745345651946,18.48558281,1698.3,1697.9,3.0]
[1745345652476,5.88893507,1698.1,1697.9,3.0]
[1745345652679,5.88872714,1698.2,1697.9,3.0]
[1745345654881,12.59716648,1698.3,1697.9,3.0]
[1745345655382,18.48567647,1698.3,1697.9,3.0]
[1745345655681,1.84856765,1698.2,1697.9,3.0]
[1745345655865,7.73715879,1698.2,1697.9,3.0]
[1745345656175,1.84856765,1698.2,1697.9,3.0]
[1745345656378,4.953358,1698.3,1697.9,3.0]
[1745345656577,4.953358,1698.3,1698.0,5.90208517]
[1745345657477,10.84170939,1698.3,1698.0,5.90208517]
[1745345659085,16.73021391,1698.3,1698.0,5.90208517]
[1745345659587,4.953358,1698.3,1698.1,0.7828]
[1745345660084,10.8416638,1698.3,1698.1,0.7828]
[1745345660586,4.953358,1698.3,1698.1,0.7828]
[1745345661486,10.84170073,1698.3,1698.1,0.7828]
[1745345661684,4.953358,1698.3,1698.1,0.7828]
[1745345663397,10.84160763,1698.3,1698.1,0.7828]
[1745345664399,6.71599362,1698.2,1697.9,3.0]
[1745345664593,10.84175266,1698.3,1697.9,3.0]
[1745345664799,5.88870701,1698.2,1697.9,3.0]
[1745345665099,5.88870701,1698.2,1697.9,3.7828]
[1745345665893,10.84175266,1698.3,1697.9,3.7828]
[1745345666208,16.73024673,1698.3,1697.9,3.7828]
[1745345666411,1.67302467,1698.2,1697.7,0.7712]
[1745345666580,5.88886007,1698.2,1697.7,6.67328517]
[1745345666778,11.77778065,1698.2,1697.7,6.67328517]
[1745345667813,5.88923192,1698.1,1697.7,6.67328517]
[1745345668015,0.8091,1698.0,1697.7,0.7712]
[1745345668311,5.88976679,1697.9,1697.7,0.7712]
[1745345668507,5.88976679,1697.9,1697.6,5.90208517]
[1745345669408,5.89012648,1697.8,1697.6,5.90208517]
[1745345669602,5.88976679,1697.9,1697.6,5.90208517]
[1745345670312,10.84240034,1698.1,1697.8,5.90208517]
[1745345670527,16.73158298,1698.1,1697.8,5.90208517]
[1745345670733,10.84240034,1698.1,1697.8,5.90208517]
[1745345670932,10.84240034,1698.1,1697.8,6.67328517]
[1745345671410,4.953358,1698.1,1697.8,6.67328517]
[1745345671601,4.953358,1698.1,1697.8,8.22963451]
[1745345671804,4.953358,1698.1,1697.8,6.67328517]
[1745345672032,10.8425194,1698.1,1697.8,6.67328517]
[1745345673839,5.88944117,1698.0,1697.8,0.7712]
[1745345674438,5.88944117,1698.0,1697.7,3.0]
[1745345675840,11.65158522,1698.1,1697.7,3.0]
[1745345676144,10.84248522,1698.1,1697.7,3.0]
[1745345676343,5.8893104,1698.0,1697.7,3.0]
[1745345676649,12.51561428,1698.1,1697.7,3.0]
[1745345676948,4.953358,1698.1,1697.7,3.0]
[1745345677150,4.953358,1698.1,1697.8,6.67328517]
[1745345678872,4.953358,1698.1,1698.0,5.90208517]
[1745345679173,4.953358,1698.3,1698.0,5.90208517]
[1745345679376,10.84162496,1698.3,1698.0,5.90208517]
[1745345679677,4.953358,1698.3,1698.0,5.90208517]
[1745345680375,4.953358,1698.3,1698.2,5.90208517]
[1745345680577,10.84058171,1698.6,1698.2,5.90208517]
[1745345681169,4.953358,1698.6,1698.2,5.90208517]
[1745345681371,10.84057169,1698.6,1698.2,5.90208517]
[1745345681942,5.88766586,1698.5,1698.2,5.90208517]
[1745345682143,7.56048962,1698.5,1698.2,3.0]
[1745345683282,1.67282376,1698.5,1697.9,5.565]
[1745345683434,5.88842754,1698.3,1697.9,6.3952]
[1745345683638,5.88842754,1698.3,1697.9,3.8302]
[1745345685063,5.88868889,1698.2,1697.9,3.8302]
[1745345685231,5.88868889,1698.2,1697.7,9.73228517]
[1745345685654,5.88861054,1698.2,1697.7,15.62239134]
[1745345685968,5.88861054,1698.2,1697.7,18.33007688]
[1745345687076,11.77748758,1698.2,1697.7,18.33007688]
[1745345687279,5.88861054,1698.2,1697.7,15.62239134]
[1745345687579,5.88861054,1698.2,1697.7,9.73228517]
[1745345687780,5.88861054,1698.2,1697.7,15.622594]